[Event "*** Titled Tuesday Blitz"]
[Site "Chess.com"]
[Date "2018.07.03"]
[Round "9"]
[White "Spring199"]
[Black "Mbneu"]
[Result "0-1"]
[WhiteElo "2195"]
[BlackElo "2275"]
[TimeControl "180+2"]
[EndTime "14:59:12 PDT"]
[Termination "Mbneu won by checkmate"]

1. d4 {[%clk 0:03:01.9]} 1... d5 {[%clk 0:02:59.9]} 2. Bf4 {[%clk 0:03:01]} 2...
e6 {[%clk 0:03:00.7]} 3. e3 {[%clk 0:03:01.7]} 3... Bd6 {[%clk 0:03:02.1]} 4.
Bg3 {[%clk 0:03:02.1]} 4... Ne7 {[%clk 0:03:03.6]} 5. Nf3 {[%clk 0:02:58.2]}
5... Nf5 {[%clk 0:03:04.9]} 6. Bd3 {[%clk 0:02:56.4]} 6... Nd7 {[%clk
0:03:06.2]} 7. Nbd2 {[%clk 0:02:54.3]} 7... O-O {[%clk 0:03:05.3]} 8. c4 {[%clk
0:02:44.7]} 8... dxc4 {[%clk 0:02:43.3]} 9. Nxc4 {[%clk 0:02:42.1]} 9... Nb6
{[%clk 0:02:37.4]} 10. Nxd6 {[%clk 0:02:29.8]} 10... cxd6 {[%clk 0:02:37]} 11.
e4 {[%clk 0:02:26.6]} 11... Ne7 {[%clk 0:02:31.8]} 12. O-O {[%clk 0:02:24.6]}
12... Ng6 {[%clk 0:02:27.3]} 13. Qd2 {[%clk 0:02:18.6]} 13... Re8 {[%clk
0:02:26.5]} 14. Rac1 {[%clk 0:02:10.8]} 14... e5 {[%clk 0:02:17.8]} 15. Bb5
{[%clk 0:01:52.4]} 15... Bd7 {[%clk 0:02:17]} 16. Bxd7 {[%clk 0:01:51]} 16...
Qxd7 {[%clk 0:02:17.8]} 17. dxe5 {[%clk 0:01:51.8]} 17... dxe5 {[%clk
0:02:18.2]} 18. Qxd7 {[%clk 0:01:50.5]} 18... Nxd7 {[%clk 0:02:18.8]} 19. Rc7
{[%clk 0:01:52]} 19... Nf6 {[%clk 0:02:17.6]} 20. Re1 {[%clk 0:01:43]} 20... b6
{[%clk 0:02:07.7]} 21. h4 {[%clk 0:01:29.9]} 21... Nh5 {[%clk 0:02:06.1]} 22.
Bh2 {[%clk 0:01:26.9]} 22... Nhf4 {[%clk 0:02:01.6]} 23. h5 {[%clk 0:01:20.9]}
23... Nxh5 {[%clk 0:02:00.8]} 24. Rd1 {[%clk 0:01:12.6]} 24... Nf6 {[%clk
0:01:42.1]} 25. Ng5 {[%clk 0:00:49.6]} 25... Rf8 {[%clk 0:01:28.4]} 26. f3
{[%clk 0:00:50.2]} 26... h6 {[%clk 0:01:18.7]} 27. Nh3 {[%clk 0:00:45.5]} 27...
Rfe8 {[%clk 0:01:18.5]} 28. Nf2 {[%clk 0:00:43.9]} 28... Nf8 {[%clk 0:01:18]}
29. Rb7 {[%clk 0:00:31.3]} 29... Rad8 {[%clk 0:00:55.4]} 30. Rxd8 {[%clk
0:00:28.7]} 30... Rxd8 {[%clk 0:00:55.8]} 31. Rxa7 {[%clk 0:00:30.2]} 31... N6d7
{[%clk 0:00:54.9]} 32. Nd3 {[%clk 0:00:25.9]} 32... f6 {[%clk 0:00:55.5]} 33.
Nb4 {[%clk 0:00:26.6]} 33... Nc5 {[%clk 0:00:55.4]} 34. Nd5 {[%clk 0:00:24.2]}
34... Nfe6 {[%clk 0:00:54.8]} 35. b4 {[%clk 0:00:21.6]} 35... Nd3 {[%clk
0:00:49.4]} 36. a4 {[%clk 0:00:20]} 36... Nd4 {[%clk 0:00:48.4]} 37. a5 {[%clk
0:00:20.3]} 37... bxa5 {[%clk 0:00:46.8]} 38. bxa5 {[%clk 0:00:20.9]} 38... Rb8
{[%clk 0:00:47.8]} 39. Bg3 {[%clk 0:00:18.7]} 39... Ne2+ {[%clk 0:00:32.2]} 40.
Kh2 {[%clk 0:00:19]} 40... Nef4 {[%clk 0:00:27.8]} 41. Bxf4 {[%clk 0:00:16]}
41... Nxf4 {[%clk 0:00:28.5]} 42. Nxf4 {[%clk 0:00:15]} 42... exf4 {[%clk
0:00:29.1]} 43. a6 {[%clk 0:00:14.7]} 43... Kh7 {[%clk 0:00:29.9]} 44. Kh3
{[%clk 0:00:15.6]} 44... h5 {[%clk 0:00:30]} 45. Rd7 {[%clk 0:00:09.9]} 45...
Rb1 {[%clk 0:00:28.3]} 46. Kh2 {[%clk 0:00:09.2]} 46... Ra1 {[%clk 0:00:28.4]}
47. a7 {[%clk 0:00:10.3]} 47... Kh6 {[%clk 0:00:28.2]} 48. g3 {[%clk 0:00:10.8]}
48... Ra2+ {[%clk 0:00:27.7]} 49. Kh3 {[%clk 0:00:11.6]} 49... fxg3 {[%clk
0:00:26.4]} 50. Kxg3 {[%clk 0:00:13.5]} 50... g5 {[%clk 0:00:26.8]} 51. f4
{[%clk 0:00:10.8]} 51... Ra3+ {[%clk 0:00:26.5]} 52. Kg2 {[%clk 0:00:09.7]}
52... g4 {[%clk 0:00:26.9]} 53. e5 {[%clk 0:00:10]} 53... fxe5 {[%clk
0:00:27.3]} 54. fxe5 {[%clk 0:00:11.1]} 54... h4 {[%clk 0:00:28.2]} 55. e6
{[%clk 0:00:11.9]} 55... Ra2+ {[%clk 0:00:29.8]} 56. Kf1 {[%clk 0:00:12.1]}
56... h3 {[%clk 0:00:29]} 57. e7 {[%clk 0:00:12]} 57... h2 {[%clk 0:00:30.2]}
58. a8=Q {[%clk 0:00:10.7]} 58... Rxa8 {[%clk 0:00:29.4]} 59. Kg2 {[%clk
0:00:12.2]} 59... Ra2+ {[%clk 0:00:28.2]} 60. Kh1 {[%clk 0:00:12.4]} 60... g3
{[%clk 0:00:29.4]} 61. e8=Q {[%clk 0:00:12.5]} 61... Ra1+ {[%clk 0:00:30.2]} 62.
Kg2 {[%clk 0:00:13.1]} 62... h1=Q+ {[%clk 0:00:31.7]} 63. Kxg3 {[%clk
0:00:14.1]} 63... Rg1+ {[%clk 0:00:31.8]} 64. Kf4 {[%clk 0:00:14.4]} 64... Qh4+
{[%clk 0:00:31.3]} 65. Kf5 {[%clk 0:00:13.8]} 65... Rf1+ {[%clk 0:00:31.6]} 66.
Ke6 {[%clk 0:00:09.2]} 66... Re1+ {[%clk 0:00:32.6]} 67. Kf7 {[%clk 0:00:08]}
67... Qf4+ {[%clk 0:00:32.3]} 68. Kg8 {[%clk 0:00:05.4]} 68... Rxe8# {[%clk
0:00:32.8]} 0-1

[Event "*** Titled Tuesday Blitz"]
[Site "Chess.com"]
[Date "2018.07.03"]
[Round "9"]
[White "GM_Huschenbeth"]
[Black "plouarzel"]
[Result "1/2-1/2"]
[WhiteElo "2514"]
[BlackElo "2489"]
[TimeControl "180+2"]
[EndTime "14:59:20 PDT"]
[Termination "Game drawn - insufficient material"]

1. e4 {[%clk 0:03:01.9]} 1... d6 {[%clk 0:03:00.8]} 2. d4 {[%clk 0:03:01.9]}
2... Nf6 {[%clk 0:03:02.1]} 3. Nc3 {[%clk 0:03:03.5]} 3... e5 {[%clk 0:03:03.2]}
4. Nf3 {[%clk 0:03:04]} 4... Nbd7 {[%clk 0:03:02.1]} 5. Bc4 {[%clk 0:03:05.4]}
5... exd4 {[%clk 0:03:03.7]} 6. Nxd4 {[%clk 0:03:06]} 6... Nb6 {[%clk
0:03:04.6]} 7. Be2 {[%clk 0:02:58.2]} 7... Be7 {[%clk 0:03:05.1]} 8. O-O {[%clk
0:02:51.6]} 8... O-O {[%clk 0:03:05.2]} 9. Be3 {[%clk 0:02:51.5]} 9... c6 {[%clk
0:03:05.3]} 10. h3 {[%clk 0:02:49]} 10... d5 {[%clk 0:03:05.8]} 11. e5 {[%clk
0:02:50.1]} 11... Ne8 {[%clk 0:03:07.3]} 12. Nb3 {[%clk 0:02:39.3]} 12... g6
{[%clk 0:03:07.8]} 13. f4 {[%clk 0:02:31.1]} 13... Ng7 {[%clk 0:03:08.8]} 14.
Bc5 {[%clk 0:02:28.6]} 14... f6 {[%clk 0:03:04.7]} 15. exf6 {[%clk 0:02:24.4]}
15... Bxc5+ {[%clk 0:03:03.1]} 16. Nxc5 {[%clk 0:02:26.3]} 16... Qxf6 {[%clk
0:03:04.2]} 17. Qd2 {[%clk 0:02:03.3]} 17... Nf5 {[%clk 0:03:03.8]} 18. Rfe1
{[%clk 0:01:52.4]} 18... Nd7 {[%clk 0:02:54.1]} 19. Nd3 {[%clk 0:01:49.9]} 19...
Qd4+ {[%clk 0:02:40.7]} 20. Kh2 {[%clk 0:01:49.1]} 20... Qe3 {[%clk 0:02:42]}
21. Qxe3 {[%clk 0:01:40.1]} 21... Nxe3 {[%clk 0:02:43.9]} 22. Rac1 {[%clk
0:01:39.3]} 22... Nb6 {[%clk 0:02:35.2]} 23. Bf3 {[%clk 0:01:34]} 23... Nf5
{[%clk 0:02:36.1]} 24. Ne2 {[%clk 0:01:23]} 24... Bd7 {[%clk 0:02:31.1]} 25. g4
{[%clk 0:01:20.1]} 25... Nd6 {[%clk 0:02:30.5]} 26. Nd4 {[%clk 0:01:10.9]} 26...
Rae8 {[%clk 0:02:27.5]} 27. Kg3 {[%clk 0:01:08.9]} 27... Kg7 {[%clk 0:02:00.1]}
28. b3 {[%clk 0:01:09.4]} 28... Rxe1 {[%clk 0:01:51.9]} 29. Rxe1 {[%clk
0:01:09.3]} 29... Re8 {[%clk 0:01:53.8]} 30. Ne5 {[%clk 0:01:10.2]} 30... Bc8
{[%clk 0:01:48.1]} 31. a4 {[%clk 0:01:08.2]} 31... Nd7 {[%clk 0:01:49.1]} 32.
Nd3 {[%clk 0:00:45.4]} 32... Rxe1 {[%clk 0:01:48.8]} 33. Nxe1 {[%clk 0:00:47.3]}
33... Kf7 {[%clk 0:01:40.6]} 34. Nd3 {[%clk 0:00:45.2]} 34... Nf6 {[%clk
0:01:35.9]} 35. Nf2 {[%clk 0:00:28.3]} 35... c5 {[%clk 0:01:31.9]} 36. Nb5
{[%clk 0:00:25.2]} 36... Nxb5 {[%clk 0:01:28.6]} 37. axb5 {[%clk 0:00:27.1]}
37... Be6 {[%clk 0:01:29.9]} 38. g5 {[%clk 0:00:25.8]} 38... Nd7 {[%clk
0:01:26.9]} 39. Nd3 {[%clk 0:00:23.9]} 39... Ke7 {[%clk 0:01:25.2]} 40. h4
{[%clk 0:00:24]} 40... Kd6 {[%clk 0:01:25.5]} 41. h5 {[%clk 0:00:24.7]} 41...
Bf5 {[%clk 0:01:21.4]} 42. Bg4 {[%clk 0:00:18.1]} 42... Nf8 {[%clk 0:01:09.7]}
43. Bxf5 {[%clk 0:00:17.2]} 43... gxf5 {[%clk 0:01:11.6]} 44. Ne5 {[%clk
0:00:16.9]} 44... Ke6 {[%clk 0:01:05.6]} 45. h6 {[%clk 0:00:12.9]} 45... a6
{[%clk 0:00:58]} 46. bxa6 {[%clk 0:00:11.8]} 46... bxa6 {[%clk 0:00:59.9]} 47.
Kh4 {[%clk 0:00:13.3]} 47... a5 {[%clk 0:00:56.4]} 48. Kh5 {[%clk 0:00:05.2]}
48... c4 {[%clk 0:00:56.5]} 49. g6 {[%clk 0:00:05.7]} 49... hxg6+ {[%clk
0:00:50]} 50. Nxg6 {[%clk 0:00:07.6]} 50... Nh7 {[%clk 0:00:51.5]} 51. Ne5
{[%clk 0:00:08.7]} 51... cxb3 {[%clk 0:00:49.6]} 52. cxb3 {[%clk 0:00:10.6]}
52... Kf6 {[%clk 0:00:47.8]} 53. Nd7+ {[%clk 0:00:10.9]} 53... Kf7 {[%clk
0:00:40.1]} 54. Ne5+ {[%clk 0:00:09.1]} 54... Kf6 {[%clk 0:00:38.8]} 55. Nc6
{[%clk 0:00:10.5]} 55... Nf8 {[%clk 0:00:32.6]} 56. Nxa5 {[%clk 0:00:09.8]}
56... Ne6 {[%clk 0:00:32]} 57. h7 {[%clk 0:00:07.6]} 57... Kg7 {[%clk
0:00:30.1]} 58. h8=Q+ {[%clk 0:00:08.7]} 58... Kxh8 {[%clk 0:00:31.2]} 59. Kg6
{[%clk 0:00:10.6]} 59... Nxf4+ {[%clk 0:00:31.7]} 60. Kxf5 {[%clk 0:00:12.2]}
60... Nd3 {[%clk 0:00:21.3]} 61. Nb7 {[%clk 0:00:13.2]} 61... Kg7 {[%clk
0:00:18.7]} 62. Ke6 {[%clk 0:00:13.9]} 62... d4 {[%clk 0:00:18.5]} 63. Kd5
{[%clk 0:00:15.1]} 63... Nc1 {[%clk 0:00:16.9]} 64. Kxd4 {[%clk 0:00:14.2]}
64... Nxb3+ {[%clk 0:00:18.2]} 65. Kc3 {[%clk 0:00:13.2]} 65... Nc5 {[%clk
0:00:20.1]} 66. Nxc5 {[%clk 0:00:14]} 1/2-1/2

[Event "*** Titled Tuesday Blitz"]
[Site "Chess.com"]
[Date "2018.07.03"]
[Round "9"]
[White "ChainsOfFantasia"]
[Black "eljanov"]
[Result "0-1"]
[WhiteElo "2424"]
[BlackElo "2662"]
[TimeControl "180+2"]
[EndTime "14:59:52 PDT"]
[Termination "eljanov won by resignation"]

1. d4 {[%clk 0:03:01.9]} 1... d5 {[%clk 0:03:00]} 2. Nf3 {[%clk 0:03:02.2]} 2...
Nf6 {[%clk 0:02:59.6]} 3. c4 {[%clk 0:03:03.3]} 3... c6 {[%clk 0:03:00.7]} 4.
Nc3 {[%clk 0:03:03.8]} 4... a6 {[%clk 0:03:01.7]} 5. c5 {[%clk 0:02:57.2]} 5...
Bf5 {[%clk 0:03:02.4]} 6. g3 {[%clk 0:02:55.9]} 6... h6 {[%clk 0:02:54.5]} 7.
Bg2 {[%clk 0:02:56.9]} 7... Nbd7 {[%clk 0:02:54.9]} 8. O-O {[%clk 0:02:57.1]}
8... e6 {[%clk 0:02:55.8]} 9. Re1 {[%clk 0:02:57.7]} 9... Be7 {[%clk 0:02:56.6]}
10. Bf4 {[%clk 0:02:54.2]} 10... O-O {[%clk 0:02:56.1]} 11. b4 {[%clk
0:02:51.5]} 11... Ne4 {[%clk 0:02:53]} 12. Qc1 {[%clk 0:02:45.7]} 12... Bf6
{[%clk 0:02:47.7]} 13. Ne5 {[%clk 0:02:13.3]} 13... Bxe5 {[%clk 0:02:27.3]} 14.
Bxe5 {[%clk 0:02:07.2]} 14... Nxe5 {[%clk 0:01:53.5]} 15. Nxe4 {[%clk
0:01:54.2]} 15... dxe4 {[%clk 0:01:48.1]} 16. dxe5 {[%clk 0:01:54.4]} 16... Qd4
{[%clk 0:01:49.5]} 17. Qf4 {[%clk 0:01:43.7]} 17... g5 {[%clk 0:01:34.1]} 18.
Qe3 {[%clk 0:01:36.7]} 18... Rfd8 {[%clk 0:01:31.6]} 19. Qxd4 {[%clk 0:01:30.7]}
19... Rxd4 {[%clk 0:01:32.3]} 20. Rab1 {[%clk 0:01:28]} 20... Rad8 {[%clk
0:01:14.5]} 21. e3 {[%clk 0:01:23.7]} 21... Rd2 {[%clk 0:01:09.6]} 22. a4 {[%clk
0:01:24]} 22... Ra2 {[%clk 0:01:10.6]} 23. Ra1 {[%clk 0:01:19.1]} 23... Rdd2
{[%clk 0:01:05.1]} 24. Rxa2 {[%clk 0:01:04]} 24... Rxa2 {[%clk 0:01:07]} 25. h3
{[%clk 0:00:41.5]} 25... Rxa4 {[%clk 0:01:03]} 26. g4 {[%clk 0:00:42.7]} 26...
Bg6 {[%clk 0:01:02.2]} 27. Rb1 {[%clk 0:00:44.3]} 27... Kf8 {[%clk 0:00:57.2]}
28. Bf1 {[%clk 0:00:40.5]} 28... Ke7 {[%clk 0:00:57.9]} 29. Bc4 {[%clk
0:00:38.4]} 29... a5 {[%clk 0:00:45]} 30. bxa5 {[%clk 0:00:23.2]} 30... Rxc4
{[%clk 0:00:45.1]} 31. Rxb7+ {[%clk 0:00:25.1]} 31... Kf8 {[%clk 0:00:29.2]} 32.
a6 {[%clk 0:00:27]} 32... Kg7 {[%clk 0:00:25.5]} 33. a7 {[%clk 0:00:23.3]} 33...
Ra4 {[%clk 0:00:26.3]} 34. Kf1 {[%clk 0:00:24.5]} 34... h5 {[%clk 0:00:24.2]}
35. Ke1 {[%clk 0:00:21.8]} 35... Ra5 {[%clk 0:00:14.2]} 36. Ke2 {[%clk
0:00:19.7]} 36... Ra2+ {[%clk 0:00:12.8]} 37. Ke1 {[%clk 0:00:19]} 37... h4
{[%clk 0:00:12.4]} 38. Kf1 {[%clk 0:00:19.7]} 38... Ra1+ {[%clk 0:00:13.3]} 39.
Kg2 {[%clk 0:00:20]} 39... Kh6 {[%clk 0:00:13.8]} 40. Kh2 {[%clk 0:00:20.6]}
40... Ra2 {[%clk 0:00:14.9]} 41. Kg2 {[%clk 0:00:21.7]} 41... Kg7 {[%clk
0:00:15.7]} 42. Kg1 {[%clk 0:00:22.5]} 42... Bh7 {[%clk 0:00:16.3]} 43. Kf1
{[%clk 0:00:23.3]} 43... Kg6 {[%clk 0:00:17.1]} 44. Kg2 {[%clk 0:00:22.7]} 44...
Kg7 {[%clk 0:00:12.8]} 45. Kf1 {[%clk 0:00:23.4]} 45... Bg8 {[%clk 0:00:13.8]}
46. Kg2 {[%clk 0:00:23.2]} 46... Kh6 {[%clk 0:00:12.8]} 47. Rb8 {[%clk
0:00:22.9]} 47... Rxa7 {[%clk 0:00:12.9]} 48. Rxg8 {[%clk 0:00:23.9]} 48... Ra5
{[%clk 0:00:14]} 49. Rd8 {[%clk 0:00:22.8]} 49... Rxc5 {[%clk 0:00:14.8]} 50.
Rd7 {[%clk 0:00:22.9]} 50... Kg6 {[%clk 0:00:15.7]} 51. Rc7 {[%clk 0:00:24.4]}
51... Rc1 {[%clk 0:00:15.1]} 52. Rc8 {[%clk 0:00:24.2]} 52... c5 {[%clk
0:00:16.4]} 53. f4 {[%clk 0:00:24.1]} 53... exf3+ {[%clk 0:00:16.9]} 54. Kxf3
{[%clk 0:00:25]} 54... c4 {[%clk 0:00:18.3]} 55. Rg8+ {[%clk 0:00:25.7]} 55...
Kh6 {[%clk 0:00:19]} 56. Rf8 {[%clk 0:00:25.7]} 56... Kg7 {[%clk 0:00:19.6]} 57.
Rc8 {[%clk 0:00:27.6]} 57... c3 {[%clk 0:00:20.6]} 58. Kg2 {[%clk 0:00:27.3]}
58... c2 {[%clk 0:00:21.5]} 59. Kh2 {[%clk 0:00:28.4]} 59... f6 {[%clk
0:00:22.1]} 60. Rc7+ {[%clk 0:00:28.2]} 60... Kg6 {[%clk 0:00:23.3]} 61. Rc6
{[%clk 0:00:26.9]} 61... fxe5 {[%clk 0:00:22.6]} 62. Rxe6+ {[%clk 0:00:27.9]}
62... Kf7 {[%clk 0:00:23.8]} 63. Rc6 {[%clk 0:00:29.8]} 63... Ke7 {[%clk
0:00:23.8]} 64. Kg2 {[%clk 0:00:30.9]} 64... Kd7 {[%clk 0:00:25]} 65. Rc5 {[%clk
0:00:30.1]} 65... e4 {[%clk 0:00:25.6]} 66. Rc4 {[%clk 0:00:28.6]} 66... Kd6
{[%clk 0:00:26.5]} 67. Rc8 {[%clk 0:00:26.5]} 67... Kd5 {[%clk 0:00:27.7]} 68.
Rc7 {[%clk 0:00:25.1]} 68... Re1 {[%clk 0:00:25]} 69. Rxc2 {[%clk 0:00:24.5]}
69... Rxe3 {[%clk 0:00:26.2]} 70. Ra2 {[%clk 0:00:25]} 70... Rg3+ {[%clk
0:00:25.9]} 71. Kh2 {[%clk 0:00:26.4]} 71... e3 {[%clk 0:00:27]} 72. Ra5+ {[%clk
0:00:15.4]} 72... Ke4 {[%clk 0:00:27.9]} 73. Ra8 {[%clk 0:00:07.3]} 73... e2
{[%clk 0:00:28.4]} 74. Re8+ {[%clk 0:00:08.3]} 74... Kd3 {[%clk 0:00:29.4]} 75.
Rd8+ {[%clk 0:00:09.2]} 75... Kc2 {[%clk 0:00:30.5]} 76. Rc8+ {[%clk 0:00:08.4]}
76... Kd2 {[%clk 0:00:31.7]} 77. Rd8+ {[%clk 0:00:09.3]} 77... Rd3 {[%clk
0:00:32.7]} 0-1

[Event "*** Titled Tuesday Blitz"]
[Site "Chess.com"]
[Date "2018.07.03"]
[Round "9"]
[White "FairChess_on_YouTube"]
[Black "penguingm1"]
[Result "1/2-1/2"]
[WhiteElo "2920"]
[BlackElo "2786"]
[TimeControl "180+2"]
[EndTime "15:01:40 PDT"]
[Termination "Game drawn by agreement"]

1. d4 {[%clk 0:03:01.9]} 1... d5 {[%clk 0:03:00.5]} 2. Nf3 {[%clk 0:03:02.1]}
2... Nf6 {[%clk 0:03:01.6]} 3. c4 {[%clk 0:03:03]} 3... e6 {[%clk 0:03:03]} 4.
Nc3 {[%clk 0:03:03.1]} 4... Be7 {[%clk 0:03:04.3]} 5. Bf4 {[%clk 0:03:02.5]}
5... O-O {[%clk 0:03:05.3]} 6. a3 {[%clk 0:03:03.7]} 6... b6 {[%clk 0:02:08]} 7.
e3 {[%clk 0:03:02.7]} 7... Bb7 {[%clk 0:02:08.6]} 8. Qc2 {[%clk 0:03:03.7]} 8...
c5 {[%clk 0:02:07.7]} 9. Rd1 {[%clk 0:03:02]} 9... Nbd7 {[%clk 0:01:59]} 10.
cxd5 {[%clk 0:02:59.3]} 10... Nxd5 {[%clk 0:01:48.2]} 11. Nxd5 {[%clk
0:03:00.2]} 11... exd5 {[%clk 0:01:47.8]} 12. Bd3 {[%clk 0:02:57.3]} 12... Nf6
{[%clk 0:01:42.6]} 13. dxc5 {[%clk 0:02:56.9]} 13... bxc5 {[%clk 0:01:41.6]} 14.
O-O {[%clk 0:02:57.8]} 14... Qb6 {[%clk 0:01:42.2]} 15. Be5 {[%clk 0:02:51.9]}
15... h6 {[%clk 0:01:42.5]} 16. b4 {[%clk 0:02:49.3]} 16... cxb4 {[%clk
0:01:29.5]} 17. Bd4 {[%clk 0:02:46]} 17... Qd8 {[%clk 0:01:26.1]} 18. Nh4 {[%clk
0:02:32.7]} 18... Bc8 {[%clk 0:01:18.3]} 19. Bf5 {[%clk 0:02:08.2]} 19... bxa3
{[%clk 0:01:13.3]} 20. e4 {[%clk 0:02:09.3]} 20... Be6 {[%clk 0:00:39.5]} 21.
Bxe6 {[%clk 0:01:32.6]} 21... fxe6 {[%clk 0:00:40.4]} 22. Ng6 {[%clk 0:01:33.9]}
22... Re8 {[%clk 0:00:39.8]} 23. exd5 {[%clk 0:01:33.3]} 23... Nxd5 {[%clk
0:00:32.7]} 24. Rfe1 {[%clk 0:01:28.8]} 24... Bf6 {[%clk 0:00:33.8]} 25. Qa4
{[%clk 0:01:16.7]} 25... Bxd4 {[%clk 0:00:28.9]} 26. Rxd4 {[%clk 0:01:18.6]}
26... Qf6 {[%clk 0:00:28.9]} 27. Rxd5 {[%clk 0:01:06]} 27... Qxg6 {[%clk
0:00:19.9]} 28. Ra5 {[%clk 0:00:54.4]} 28... Qf7 {[%clk 0:00:17]} 29. Qxa3
{[%clk 0:00:53.8]} 29... Re7 {[%clk 0:00:17.3]} 30. h3 {[%clk 0:00:49.7]} 30...
Rf8 {[%clk 0:00:13]} 31. Qe3 {[%clk 0:00:48.2]} 31... e5 {[%clk 0:00:14.2]} 32.
Rea1 {[%clk 0:00:47]} 32... Ra8 {[%clk 0:00:08.7]} 33. Rxe5 {[%clk 0:00:43.9]}
33... Rxe5 {[%clk 0:00:08.6]} 34. Qxe5 {[%clk 0:00:45.5]} 34... Re8 {[%clk
0:00:09.3]} 35. Qd4 {[%clk 0:00:44.2]} 35... Re7 {[%clk 0:00:09.9]} 36. Qd3
{[%clk 0:00:31.5]} 36... Qf6 {[%clk 0:00:07.2]} 37. Rb1 {[%clk 0:00:32.6]} 37...
Qe5 {[%clk 0:00:06.6]} 38. g3 {[%clk 0:00:23.5]} 38... Qe4 {[%clk 0:00:06.1]}
39. Qb3+ {[%clk 0:00:17]} 39... Kh7 {[%clk 0:00:06.2]} 40. Ra1 {[%clk 0:00:18]}
40... Qf5 {[%clk 0:00:05.8]} 41. Qc4 {[%clk 0:00:11.5]} 41... Rf7 {[%clk
0:00:04.4]} 42. Qd4 {[%clk 0:00:10.4]} 42... Qxh3 {[%clk 0:00:03.9]} 43. Rxa7
{[%clk 0:00:10]} 43... Rxa7 {[%clk 0:00:04.6]} 44. Qxa7 {[%clk 0:00:11.5]} 44...
Qf5 {[%clk 0:00:06.3]} 45. Qe3 {[%clk 0:00:12.4]} 45... Qb1+ {[%clk 0:00:07.5]}
46. Kg2 {[%clk 0:00:13.4]} 46... Qf5 {[%clk 0:00:09.1]} 47. f3 {[%clk
0:00:13.5]} 47... Qc2+ {[%clk 0:00:09.3]} 48. Kh3 {[%clk 0:00:14]} 48... Qb1
{[%clk 0:00:10.7]} 49. g4 {[%clk 0:00:13.3]} 49... Qb5 {[%clk 0:00:08]} 50. Qe4+
{[%clk 0:00:13.5]} 50... Kg8 {[%clk 0:00:09]} 51. Kg3 {[%clk 0:00:14.4]} 51...
Qb6 {[%clk 0:00:09.7]} 52. Qd5+ {[%clk 0:00:14.9]} 52... Kf8 {[%clk 0:00:10.7]}
53. Kf4 {[%clk 0:00:13.2]} 53... Qf6+ {[%clk 0:00:07.5]} 54. Ke4 {[%clk
0:00:14.1]} 54... Qg6+ {[%clk 0:00:07.8]} 55. Ke3 {[%clk 0:00:09.1]} 55... Qf6
{[%clk 0:00:07.3]} 56. Ke4 {[%clk 0:00:07.8]} 56... Qg6+ {[%clk 0:00:07.5]} 57.
Kd4 {[%clk 0:00:08.3]} 57... Qf6+ {[%clk 0:00:07.3]} 58. Ke3 {[%clk 0:00:08.9]}
58... Qe7+ {[%clk 0:00:07.2]} 59. Kf2 {[%clk 0:00:09.3]} 59... Qh4+ {[%clk
0:00:08.3]} 60. Kg2 {[%clk 0:00:10.2]} 60... Qe1 {[%clk 0:00:09.2]} 61. Qf5+
{[%clk 0:00:08.7]} 61... Kg8 {[%clk 0:00:10.6]} 62. Qc8+ {[%clk 0:00:09.6]}
62... Kh7 {[%clk 0:00:12]} 63. Qc2+ {[%clk 0:00:11.1]} 63... Kh8 {[%clk
0:00:12.3]} 64. Qd3 {[%clk 0:00:11.9]} 64... Kg8 {[%clk 0:00:13.1]} 65. f4
{[%clk 0:00:11.8]} 65... Qh4 {[%clk 0:00:13.8]} 66. Qd5+ {[%clk 0:00:12.2]}
66... Kh8 {[%clk 0:00:15]} 67. Qa8+ {[%clk 0:00:12.6]} 67... Kh7 {[%clk
0:00:16]} 68. Qe4+ {[%clk 0:00:14]} 68... Kh8 {[%clk 0:00:16.7]} 69. f5 {[%clk
0:00:14.2]} 69... Qf6 {[%clk 0:00:17.7]} 70. Kf3 {[%clk 0:00:14.4]} 70... Qc3+
{[%clk 0:00:18.1]} 71. Kf4 {[%clk 0:00:12.5]} 71... Qc7+ {[%clk 0:00:18.8]} 72.
Qe5 {[%clk 0:00:11.8]} 72... Qc4+ {[%clk 0:00:19.8]} 73. Kg3 {[%clk 0:00:12.5]}
73... Qd3+ {[%clk 0:00:21]} 74. Kh4 {[%clk 0:00:13.1]} 74... Qd8+ {[%clk
0:00:22.2]} 75. Kh3 {[%clk 0:00:12.1]} 75... Qd3+ {[%clk 0:00:23.1]} 76. Kg2
{[%clk 0:00:13.6]} 76... Qd2+ {[%clk 0:00:24.1]} 77. Kf3 {[%clk 0:00:13.8]}
77... Qd3+ {[%clk 0:00:25.4]} 78. Qe3 {[%clk 0:00:12.7]} 78... Qd5+ {[%clk
0:00:21.5]} 79. Kg3 {[%clk 0:00:13.5]} 79... Qd6+ {[%clk 0:00:22.6]} 80. Kh3
{[%clk 0:00:13.9]} 80... Qc6 {[%clk 0:00:22.4]} 81. Kg3 {[%clk 0:00:11.1]} 81...
Qd6+ {[%clk 0:00:23.4]} 82. Kh3 {[%clk 0:00:12.2]} 82... Qc6 {[%clk 0:00:24.8]}
83. Kh2 {[%clk 0:00:11.5]} 83... Qd6+ {[%clk 0:00:25.5]} 84. Kg2 {[%clk
0:00:11.8]} 84... Qc6+ {[%clk 0:00:26.9]} 85. Qf3 {[%clk 0:00:12]} 85... Qd6
{[%clk 0:00:27]} 86. Qa8+ {[%clk 0:00:11.9]} 86... Kh7 {[%clk 0:00:28.4]} 87.
Qe4 {[%clk 0:00:13.5]} 87... Kh8 {[%clk 0:00:29.5]} 88. Qe8+ {[%clk 0:00:13.6]}
88... Kh7 {[%clk 0:00:30.6]} 89. Qe4 {[%clk 0:00:14.7]} 89... Kh8 {[%clk
0:00:31.6]} 90. Kf3 {[%clk 0:00:16.3]} 90... Qf6 {[%clk 0:00:28.4]} 91. Qe8+
{[%clk 0:00:13.9]} 91... Kh7 {[%clk 0:00:29.7]} 92. Qe4 {[%clk 0:00:13.2]} 92...
Qc3+ {[%clk 0:00:30.7]} 93. Kf4 {[%clk 0:00:12.7]} 93... Qc7+ {[%clk 0:00:29.6]}
94. Qe5 {[%clk 0:00:12.5]} 94... Qc4+ {[%clk 0:00:30.6]} 95. Qe4 {[%clk
0:00:11.7]} 95... Qc7+ {[%clk 0:00:31.6]} 96. Kf3 {[%clk 0:00:13.2]} 96... Qc3+
{[%clk 0:00:31.9]} 97. Kg2 {[%clk 0:00:13.9]} 97... Qd2+ {[%clk 0:00:29.9]} 98.
Kg3 {[%clk 0:00:15]} 98... Qc3+ {[%clk 0:00:30.9]} 99. Kh2 {[%clk 0:00:15]}
99... Qd2+ {[%clk 0:00:31.4]} 100. Kh3 {[%clk 0:00:16.5]} 100... Qc3+ {[%clk
0:00:32.4]} 101. Kg2 {[%clk 0:00:18]} 101... Qd2+ {[%clk 0:00:33.6]} 102. Kf3
{[%clk 0:00:19.4]} 102... Qc3+ {[%clk 0:00:34.9]} 103. Ke2 {[%clk 0:00:20.1]}
103... Qb2+ {[%clk 0:00:31.8]} 104. Kd3 {[%clk 0:00:20.6]} 104... Qb1+ {[%clk
0:00:33.1]} 105. Kd4 {[%clk 0:00:21.4]} 105... Qb4+ {[%clk 0:00:33.9]} 106. Ke3
{[%clk 0:00:21.3]} 106... Qc3+ {[%clk 0:00:30.7]} 1/2-1/2

[Event "*** Titled Tuesday Blitz"]
[Site "Chess.com"]
[Date "2018.07.03"]
[Round "10"]
[White "LuisFSiles"]
[Black "AndrewDGreen"]
[Result "0-1"]
[WhiteElo "2202"]
[BlackElo "2178"]
[TimeControl "180+2"]
[EndTime "15:07:46 PDT"]
[Termination "AndrewDGreen won by resignation"]

1. d4 {[%clk 0:03:01.9]} 1... Nf6 {[%clk 0:02:59.5]} 2. c4 {[%clk 0:02:58.8]}
2... g6 {[%clk 0:03:00.7]} 3. Nc3 {[%clk 0:02:58.6]} 3... Bg7 {[%clk 0:03:01.8]}
4. e4 {[%clk 0:02:59.1]} 4... d6 {[%clk 0:03:03.2]} 5. f4 {[%clk 0:02:59.2]}
5... O-O {[%clk 0:03:03.9]} 6. Nf3 {[%clk 0:02:59.7]} 6... c5 {[%clk 0:03:05.2]}
7. d5 {[%clk 0:02:58.4]} 7... e6 {[%clk 0:03:06.7]} 8. dxe6 {[%clk 0:02:57.8]}
8... Bxe6 {[%clk 0:03:06.5]} 9. Bd3 {[%clk 0:02:57.4]} 9... Bg4 {[%clk
0:03:07.4]} 10. O-O {[%clk 0:02:48.3]} 10... Nc6 {[%clk 0:03:07.2]} 11. h3
{[%clk 0:02:49.8]} 11... Bxf3 {[%clk 0:03:07.2]} 12. Qxf3 {[%clk 0:02:51.7]}
12... Nd4 {[%clk 0:03:04]} 13. Qf2 {[%clk 0:02:48.2]} 13... Re8 {[%clk 0:03:03]}
14. f5 {[%clk 0:02:42.7]} 14... Nd7 {[%clk 0:02:59.3]} 15. Nd5 {[%clk
0:02:22.8]} 15... Ne5 {[%clk 0:02:58.9]} 16. f6 {[%clk 0:02:09.2]} 16... Nxd3
{[%clk 0:02:53.3]} 17. Qg3 {[%clk 0:01:54.4]} 17... Ne2+ {[%clk 0:02:51.9]} 0-1